[Event "*** Titled Tuesday Blitz"]
[Site "Chess.com"]
[Date "2020.04.28"]
[Round "2"]
[White "DACF2905"]
[Black "wild_cat99"]
[Result "0-1"]
[WhiteElo "2183"]
[BlackElo "2544"]
[TimeControl "180+1"]
[EndTime "10:16:40 PDT"]
[Termination "wild_cat99 won by resignation"]

1. d4 {[%clk 0:03:00.9]} 1... Nf6 {[%clk 0:03:00.1]} 2. c4 {[%clk 0:03:00.2]}
2... g6 {[%clk 0:03:00.5]} 3. Nf3 {[%clk 0:02:59.7]} 3... Bg7 {[%clk 0:03:00.1]}
4. g3 {[%clk 0:03:00]} 4... O-O {[%clk 0:03:00.5]} 5. Bg2 {[%clk 0:03:00.2]}
5... d5 {[%clk 0:03:01.3]} 6. O-O {[%clk 0:02:59.5]} 6... dxc4 {[%clk
0:03:01.6]} 7. Nc3 {[%clk 0:02:58.5]} 7... Na6 {[%clk 0:03:02.1]} 8. Ne5 {[%clk
0:02:54.7]} 8... c6 {[%clk 0:03:00]} 9. Nxc4 {[%clk 0:02:53.8]} 9... Nd5 {[%clk
0:03:00.9]} 10. Nxd5 {[%clk 0:02:44.8]} 10... cxd5 {[%clk 0:03:01.8]} 11. Na3
{[%clk 0:02:34.9]} 11... Qb6 {[%clk 0:02:56.2]} 12. e3 {[%clk 0:02:34.2]} 12...
Rd8 {[%clk 0:02:53.2]} 13. Qe2 {[%clk 0:01:42.3]} 13... e5 {[%clk 0:02:52.4]}
14. dxe5 {[%clk 0:01:40.4]} 14... Nc5 {[%clk 0:02:50.6]} 15. Nb5 {[%clk
0:01:37.8]} 15... Bxe5 {[%clk 0:02:47.5]} 16. Rd1 {[%clk 0:01:35.6]} 16... Bd7
{[%clk 0:02:42.4]} 17. Nd4 {[%clk 0:01:34.8]} 17... Ne6 {[%clk 0:02:36.7]} 18.
Nf3 {[%clk 0:00:51.2]} 18... Bg7 {[%clk 0:02:31.5]} 19. Rb1 {[%clk 0:00:44.7]}
19... Bb5 {[%clk 0:02:28.4]} 20. Qd2 {[%clk 0:00:43.7]} 20... d4 {[%clk
0:02:27]} 21. exd4 {[%clk 0:00:43]} 21... Nxd4 {[%clk 0:02:27.5]} 22. Nxd4
{[%clk 0:00:41.7]} 22... Bxd4 {[%clk 0:02:28]} 23. Re1 {[%clk 0:00:34.6]} 23...
Rac8 {[%clk 0:02:23.1]} 24. Qf4 {[%clk 0:00:33.5]} 24... Rc2 {[%clk 0:02:21.2]}
25. Be3 {[%clk 0:00:33]} 25... Bxe3 {[%clk 0:02:18.9]} 26. Qxe3 {[%clk
0:00:31.6]} 26... Qxe3 {[%clk 0:02:18.2]} 27. Rxe3 {[%clk 0:00:31.5]} 27... Rdd2
{[%clk 0:02:18.1]} 28. Rf3 {[%clk 0:00:31.3]} 28... Bc6 {[%clk 0:02:12.7]} 29.
Rf4 {[%clk 0:00:29.4]} 29... Bxg2 {[%clk 0:02:12.1]} 30. Kxg2 {[%clk 0:00:29.8]}
30... Rxb2 {[%clk 0:02:12.1]} 31. Rxb2 {[%clk 0:00:29.1]} 31... Rxb2 {[%clk
0:02:13]} 32. a4 {[%clk 0:00:28.7]} 32... a5 {[%clk 0:02:08.2]} 33. Rc4 {[%clk
0:00:28.4]} 33... Rb4 {[%clk 0:02:06.4]} 34. Rc7 {[%clk 0:00:28.4]} 34... h5
{[%clk 0:02:03.3]} 35. h4 {[%clk 0:00:27.2]} 35... Kg7 {[%clk 0:02:01.3]} 36.
Kh3 {[%clk 0:00:21.7]} 36... Kf6 {[%clk 0:02:01.1]} 37. Kg2 {[%clk 0:00:21.5]}
37... Ke6 {[%clk 0:01:59.7]} 38. Kh2 {[%clk 0:00:21.3]} 38... b6 {[%clk
0:01:54.9]} 39. Kg2 {[%clk 0:00:19.7]} 39... Rxa4 {[%clk 0:01:52.2]} 40. Rc6+
{[%clk 0:00:19.7]} 40... Kd5 {[%clk 0:01:51.6]} 41. Rxb6 {[%clk 0:00:20.6]}
41... Rb4 {[%clk 0:01:51.1]} 42. Ra6 {[%clk 0:00:20.5]} 42... a4 {[%clk
0:01:49.8]} 43. Ra7 {[%clk 0:00:20.8]} 43... f5 {[%clk 0:01:47.3]} 44. Kh2
{[%clk 0:00:21]} 44... Kc4 {[%clk 0:01:44.8]} 45. Kg2 {[%clk 0:00:21.2]} 45...
Kb3 {[%clk 0:01:45.1]} 46. Ra6 {[%clk 0:00:21.3]} 46... a3 {[%clk 0:01:43.6]}
47. Rxg6 {[%clk 0:00:21.1]} 47... a2 {[%clk 0:01:44]} 48. Ra6 {[%clk 0:00:20.3]}
48... Ra4 {[%clk 0:01:44]} 49. Rb6+ {[%clk 0:00:20.5]} 49... Ka3 {[%clk
0:01:44.2]} 0-1

[Event "*** Titled Tuesday Blitz"]
[Site "Chess.com"]
[Date "2020.04.28"]
[Round "2"]
[White "godsgonnacutudown"]
[Black "Harsha_Bharathakoti"]
[Result "1/2-1/2"]
[WhiteElo "2343"]
[BlackElo "2733"]
[TimeControl "180+1"]
[EndTime "10:16:43 PDT"]
[Termination "Game drawn by repetition"]

1. e4 {[%clk 0:02:20.6]} 1... c5 {[%clk 0:02:59.4]} 2. Nf3 {[%clk 0:02:21.1]}
2... Nc6 {[%clk 0:02:59.4]} 3. d4 {[%clk 0:02:21.6]} 3... cxd4 {[%clk
0:02:59.6]} 4. Nxd4 {[%clk 0:02:22.2]} 4... Nf6 {[%clk 0:02:59.9]} 5. Nc3 {[%clk
0:02:22.6]} 5... e5 {[%clk 0:03:00.2]} 6. Ndb5 {[%clk 0:02:22.8]} 6... d6 {[%clk
0:03:00.6]} 7. Bg5 {[%clk 0:02:22.8]} 7... a6 {[%clk 0:03:01]} 8. Bxf6 {[%clk
0:02:23.3]} 8... gxf6 {[%clk 0:03:00.6]} 9. Na3 {[%clk 0:02:23.8]} 9... b5
{[%clk 0:03:00.7]} 10. Nd5 {[%clk 0:02:23.9]} 10... f5 {[%clk 0:03:00.8]} 11.
Be2 {[%clk 0:02:19]} 11... Bg7 {[%clk 0:02:56.9]} 12. exf5 {[%clk 0:02:17.2]}
12... Bxf5 {[%clk 0:02:56.4]} 13. O-O {[%clk 0:02:17.3]} 13... O-O {[%clk
0:02:55.5]} 14. Bg4 {[%clk 0:02:07.5]} 14... Bg6 {[%clk 0:02:50.7]} 15. c3
{[%clk 0:01:57.8]} 15... f5 {[%clk 0:02:49.2]} 16. Bh5 {[%clk 0:01:57.9]} 16...
e4 {[%clk 0:02:46]} 17. Bxg6 {[%clk 0:01:57.9]} 17... hxg6 {[%clk 0:02:45.8]}
18. Nf4 {[%clk 0:01:49.7]} 18... Qe8 {[%clk 0:02:32.4]} 19. Qd5+ {[%clk
0:01:47.7]} 19... Kh7 {[%clk 0:02:31.1]} 20. Ne6 {[%clk 0:01:33.7]} 20... Ne5
{[%clk 0:02:18.9]} 21. Nxf8+ {[%clk 0:01:24.1]} 21... Qxf8 {[%clk 0:02:18.2]}
22. Nc2 {[%clk 0:01:24.5]} 22... Qf6 {[%clk 0:02:15.9]} 23. Qxa8 {[%clk
0:01:18.4]} 23... Qg5 {[%clk 0:02:06]} 24. Qxa6 {[%clk 0:01:17.3]} 24... Nf3+
{[%clk 0:02:04]} 25. Kh1 {[%clk 0:01:14.4]} 25... Qf4 {[%clk 0:01:57.6]} 26. g3
{[%clk 0:01:05.5]} 26... Qh6 {[%clk 0:01:57.6]} 27. h4 {[%clk 0:01:05.6]} 27...
Nxh4 {[%clk 0:01:56.9]} 28. gxh4 {[%clk 0:01:06]} 28... Qxh4+ {[%clk 0:01:56.7]}
29. Kg1 {[%clk 0:01:06.1]} 29... Qg4+ {[%clk 0:01:48.1]} 30. Kh1 {[%clk
0:01:05.9]} 30... Qh3+ {[%clk 0:01:48.2]} 31. Kg1 {[%clk 0:01:06.1]} 31... Be5
{[%clk 0:01:18.8]} 32. Qa7+ {[%clk 0:01:01.3]} 32... Kg8 {[%clk 0:01:13.4]} 33.
Qb8+ {[%clk 0:01:01.6]} 33... Kg7 {[%clk 0:01:13.4]} 34. Qb7+ {[%clk 0:01:02.1]}
34... Kg8 {[%clk 0:01:10.8]} 35. Qc8+ {[%clk 0:01:02.5]} 35... Kg7 {[%clk
0:01:11]} 36. Qd7+ {[%clk 0:01:03]} 36... Kg8 {[%clk 0:01:10.9]} 37. Qe8+ {[%clk
0:01:03.6]} 37... Kg7 {[%clk 0:01:11.3]} 38. Qe7+ {[%clk 0:01:04.2]} 38... Kg8
{[%clk 0:01:11.7]} 39. Qd8+ {[%clk 0:01:04.8]} 39... Kg7 {[%clk 0:01:11.9]} 40.
f4 {[%clk 0:01:05.5]} 40... Qg3+ {[%clk 0:00:50.9]} 41. Kh1 {[%clk 0:01:03.9]}
41... Qh3+ {[%clk 0:00:51.8]} 42. Kg1 {[%clk 0:01:04.3]} 42... Qg3+ {[%clk
0:00:52.7]} 43. Kh1 {[%clk 0:01:04.9]} 43... Qh3+ {[%clk 0:00:53.6]} 44. Kg1
{[%clk 0:01:05.6]} 1/2-1/2

[Event "*** Titled Tuesday Blitz"]
[Site "Chess.com"]
[Date "2020.04.28"]
[Round "2"]
[White "vohiraa"]
[Black "XiaoKangZhong"]
[Result "1-0"]
[WhiteElo "2106"]
[BlackElo "2368"]
[TimeControl "180+1"]
[EndTime "10:16:43 PDT"]
[Termination "vohiraa won by resignation"]

1. e4 {[%clk 0:03:00.9]} 1... c6 {[%clk 0:02:57.4]} 2. d4 {[%clk 0:03:00.4]}
2... d5 {[%clk 0:02:49.5]} 3. e5 {[%clk 0:02:59.1]} 3... c5 {[%clk 0:02:48.2]}
4. dxc5 {[%clk 0:02:58.5]} 4... Nc6 {[%clk 0:02:45.6]} 5. Nf3 {[%clk 0:02:58.3]}
5... Bg4 {[%clk 0:02:43.7]} 6. Bb5 {[%clk 0:02:56.3]} 6... e6 {[%clk 0:02:34.1]}
7. c3 {[%clk 0:02:56.1]} 7... Ne7 {[%clk 0:02:18.1]} 8. Be3 {[%clk 0:02:42.3]}
8... Nf5 {[%clk 0:02:11.2]} 9. Bxc6+ {[%clk 0:02:37.9]} 9... bxc6 {[%clk
0:02:10.7]} 10. Qa4 {[%clk 0:02:37]} 10... Bxf3 {[%clk 0:01:52.4]} 11. Qxc6+
{[%clk 0:02:34.3]} 11... Ke7 {[%clk 0:01:51.8]} 12. Qb7+ {[%clk 0:02:25.8]}
12... Ke8 {[%clk 0:01:49]} 13. Qc6+ {[%clk 0:02:21.3]} 13... Ke7 {[%clk
0:01:48.6]} 14. gxf3 {[%clk 0:02:22.2]} 14... Rc8 {[%clk 0:01:42.2]} 15. Qa6
{[%clk 0:02:12.7]} 15... Nxe3 {[%clk 0:01:31.8]} 16. Qd6+ {[%clk 0:02:01.9]}
16... Qxd6 {[%clk 0:01:31.4]} 17. cxd6+ {[%clk 0:02:02.8]} 17... Kd7 {[%clk
0:01:31.3]} 18. fxe3 {[%clk 0:02:03.3]} 18... f6 {[%clk 0:01:25.5]} 19. f4
{[%clk 0:01:59.9]} 19... fxe5 {[%clk 0:01:22.8]} 20. fxe5 {[%clk 0:02:00.8]}
20... g6 {[%clk 0:01:21.1]} 21. Rf1 {[%clk 0:02:01]} 21... Bh6 {[%clk
0:01:18.1]} 22. Rf7+ {[%clk 0:01:58.2]} 22... Kd8 {[%clk 0:01:16.2]} 23. Ke2
{[%clk 0:01:48.1]} 23... Rb8 {[%clk 0:01:07.3]} 24. b3 {[%clk 0:01:45.5]} 24...
Rc8 {[%clk 0:00:55.3]} 25. Rxa7 {[%clk 0:01:41.3]} 25... Bg5 {[%clk 0:00:49.3]}
26. a4 {[%clk 0:01:33.1]} 26... Rf8 {[%clk 0:00:42.6]} 27. Rxh7 {[%clk
0:01:31.2]} 27... Rf5 {[%clk 0:00:35.1]} 28. a5 {[%clk 0:01:09.7]} 28... Rxe5
{[%clk 0:00:22.4]} 29. a6 {[%clk 0:01:09.2]} 29... Rxe3+ {[%clk 0:00:22.3]} 30.
Kf2 {[%clk 0:01:08.2]} 30... Re5 {[%clk 0:00:19.4]} 31. Rh8+ {[%clk 0:01:07.5]}
31... Kd7 {[%clk 0:00:19.1]} 32. Rxc8 {[%clk 0:01:08.4]} 32... Kxc8 {[%clk
0:00:20]} 33. a7 {[%clk 0:01:08.4]} 33... Rf5+ {[%clk 0:00:20.6]} 34. Kg2 {[%clk
0:01:07.5]} 1-0

[Event "*** Titled Tuesday Blitz"]
[Site "Chess.com"]
[Date "2020.04.28"]
[Round "2"]
[White "icychess54"]
[Black "ehrenfeld"]
[Result "0-1"]
[WhiteElo "2258"]
[BlackElo "2490"]
[TimeControl "180+1"]
[EndTime "10:16:44 PDT"]
[Termination "ehrenfeld won by resignation"]

1. c4 {[%clk 0:03:00.9]} 1... e5 {[%clk 0:02:59.7]} 2. Nc3 {[%clk 0:03:00.4]}
2... d6 {[%clk 0:02:59.7]} 3. Nf3 {[%clk 0:03:00.8]} 3... f5 {[%clk 0:02:59.9]}
4. e3 {[%clk 0:03:01.3]} 4... Nf6 {[%clk 0:03:00]} 5. Be2 {[%clk 0:03:01.9]}
5... g6 {[%clk 0:02:56.9]} 6. O-O {[%clk 0:03:02.2]} 6... Bg7 {[%clk 0:02:57]}
7. b3 {[%clk 0:03:02.7]} 7... O-O {[%clk 0:02:57]} 8. Bb2 {[%clk 0:03:03.2]}
8... c5 {[%clk 0:02:57]} 9. d4 {[%clk 0:03:03.4]} 9... e4 {[%clk 0:02:56.6]} 10.
Ne1 {[%clk 0:03:02.1]} 10... Nc6 {[%clk 0:02:56.4]} 11. dxc5 {[%clk 0:03:02.4]}
11... dxc5 {[%clk 0:02:55.9]} 12. Nc2 {[%clk 0:03:01.2]} 12... Be6 {[%clk
0:02:52]} 13. Qe1 {[%clk 0:02:26.3]} 13... Qe7 {[%clk 0:02:50]} 14. Rd1 {[%clk
0:02:24.1]} 14... Rad8 {[%clk 0:02:49.4]} 15. h3 {[%clk 0:01:44.4]} 15... g5
{[%clk 0:02:47.2]} 16. f4 {[%clk 0:01:35.3]} 16... exf3 {[%clk 0:02:38.4]} 17.
Bxf3 {[%clk 0:01:35.5]} 17... Ne5 {[%clk 0:02:35.9]} 18. Bd5 {[%clk 0:01:30.7]}
18... Nxd5 {[%clk 0:02:23.9]} 19. Nxd5 {[%clk 0:01:26.1]} 19... Qf7 {[%clk
0:02:05]} 20. e4 {[%clk 0:01:25.1]} 20... f4 {[%clk 0:02:02]} 21. Qe2 {[%clk
0:01:22.5]} 21... f3 {[%clk 0:01:54.6]} 22. Qd2 {[%clk 0:01:11.9]} 22... g4
{[%clk 0:01:41.8]} 23. Bxe5 {[%clk 0:00:56.4]} 23... Bxe5 {[%clk 0:01:39.8]} 24.
Nce3 {[%clk 0:00:57.1]} 24... Qh5 {[%clk 0:01:23.7]} 25. gxf3 {[%clk 0:00:54]}
25... gxf3 {[%clk 0:01:20.5]} 26. Ne7+ {[%clk 0:00:48.4]} 26... Kf7 {[%clk
0:01:05.5]} 27. N7d5 {[%clk 0:00:23.6]} 27... Rg8+ {[%clk 0:00:59.4]} 28. Ng4
{[%clk 0:00:15.3]} 28... Bxg4 {[%clk 0:00:56.9]} 0-1

[Event "*** Titled Tuesday Blitz"]
[Site "Chess.com"]
[Date "2020.04.28"]
[Round "2"]
[White "KuzubovYuriy"]
[Black "dukicz123"]
[Result "1-0"]
[WhiteElo "2737"]
[BlackElo "2499"]
[TimeControl "180+1"]
[EndTime "10:16:45 PDT"]
[Termination "KuzubovYuriy won by resignation"]

1. d4 {[%clk 0:03:00.9]} 1... Nf6 {[%clk 0:02:57.5]} 2. c4 {[%clk 0:03:01.1]}
2... g6 {[%clk 0:02:57.8]} 3. Nc3 {[%clk 0:02:59.6]} 3... Bg7 {[%clk 0:02:58.1]}
4. g3 {[%clk 0:02:55.2]} 4... O-O {[%clk 0:02:57.7]} 5. Bg2 {[%clk 0:02:55.5]}
5... d6 {[%clk 0:02:58.6]} 6. Nf3 {[%clk 0:02:55.6]} 6... Nc6 {[%clk 0:02:59.2]}
7. O-O {[%clk 0:02:55.7]} 7... a6 {[%clk 0:02:59.7]} 8. e3 {[%clk 0:02:47.5]}
8... Rb8 {[%clk 0:02:58.3]} 9. Ne1 {[%clk 0:02:47.6]} 9... Bd7 {[%clk
0:02:52.9]} 10. Nd3 {[%clk 0:02:45.8]} 10... b5 {[%clk 0:02:48.3]} 11. cxb5
{[%clk 0:02:45.3]} 11... axb5 {[%clk 0:02:49.2]} 12. b4 {[%clk 0:02:45]} 12...
e6 {[%clk 0:02:44.4]} 13. Bb2 {[%clk 0:02:40.1]} 13... Ne7 {[%clk 0:02:44.3]}
14. Qc2 {[%clk 0:02:35.6]} 14... Ned5 {[%clk 0:02:37]} 15. e4 {[%clk 0:02:24.3]}
15... Nb6 {[%clk 0:02:22.9]} 16. Rad1 {[%clk 0:02:20.4]} 16... Nc4 {[%clk
0:02:21.8]} 17. Bc1 {[%clk 0:02:13.9]} 17... Ra8 {[%clk 0:02:18.9]} 18. Rfe1
{[%clk 0:02:04.7]} 18... Bc6 {[%clk 0:02:14.6]} 19. e5 {[%clk 0:01:53.8]} 19...
Nd5 {[%clk 0:02:14.9]} 20. Ne4 {[%clk 0:01:53.3]} 20... dxe5 {[%clk 0:02:07.4]}
21. dxe5 {[%clk 0:01:44.4]} 21... Ndb6 {[%clk 0:01:47.6]} 22. Ndc5 {[%clk
0:01:30.3]} 22... Bd5 {[%clk 0:01:40.1]} 23. Bg5 {[%clk 0:01:20.2]} 23... Qc8
{[%clk 0:01:37.1]} 24. Nf6+ {[%clk 0:01:18.4]} 24... Kh8 {[%clk 0:01:31.7]} 25.
Rd4 {[%clk 0:01:10.4]} 25... Bxg2 {[%clk 0:01:22.5]} 26. Rh4 {[%clk 0:01:02.5]}
26... h6 {[%clk 0:00:12.2]} 27. Bxh6 {[%clk 0:00:59.4]} 27... Bxf6 {[%clk
0:00:12.6]} 28. Bg5+ {[%clk 0:00:58.7]} 1-0

[Event "*** Titled Tuesday Blitz"]
[Site "Chess.com"]
[Date "2020.04.28"]
[Round "2"]
[White "AlexOstrovskiy"]
[Black "talaicito"]
[Result "1-0"]
[WhiteElo "2571"]
[BlackElo "2300"]
[TimeControl "180+1"]
[EndTime "10:16:46 PDT"]
[Termination "AlexOstrovskiy won on time"]

1. d4 {[%clk 0:03:00.9]} 1... e6 {[%clk 0:03:00.5]} 2. Bf4 {[%clk 0:02:58.9]}
2... f5 {[%clk 0:03:00.7]} 3. e3 {[%clk 0:02:57.1]} 3... Nf6 {[%clk 0:03:01.3]}
4. Nd2 {[%clk 0:02:49]} 4... d6 {[%clk 0:02:53.3]} 5. h3 {[%clk 0:02:48.1]} 5...
Nc6 {[%clk 0:02:51.4]} 6. Ngf3 {[%clk 0:02:46.9]} 6... g6 {[%clk 0:02:48.8]} 7.
c3 {[%clk 0:02:39.3]} 7... Bg7 {[%clk 0:02:48.9]} 8. Qc2 {[%clk 0:02:36.1]} 8...
O-O {[%clk 0:02:49.2]} 9. Bh2 {[%clk 0:02:35.6]} 9... Qe7 {[%clk 0:02:48.6]} 10.
Bb5 {[%clk 0:02:20.1]} 10... a6 {[%clk 0:02:42.5]} 11. Ba4 {[%clk 0:02:16.9]}
11... Kh8 {[%clk 0:02:33]} 12. e4 {[%clk 0:02:14.2]} 12... b5 {[%clk 0:02:31.2]}
13. Bb3 {[%clk 0:02:12.2]} 13... e5 {[%clk 0:02:30.8]} 14. dxe5 {[%clk
0:02:01.1]} 14... dxe5 {[%clk 0:02:22.9]} 15. O-O-O {[%clk 0:02:00.4]} 15... f4
{[%clk 0:02:06.7]} 16. Bd5 {[%clk 0:01:48.4]} 16... Bb7 {[%clk 0:01:34.9]} 17.
Rhe1 {[%clk 0:01:45.2]} 17... Na5 {[%clk 0:01:29.4]} 18. Nb3 {[%clk 0:01:30.3]}
18... Nc6 {[%clk 0:01:02.1]} 19. Ng5 {[%clk 0:01:23.9]} 19... a5 {[%clk
0:00:42]} 20. Ne6 {[%clk 0:01:20.9]} 20... Rfe8 {[%clk 0:00:25.8]} 21. Nbc5
{[%clk 0:01:18.2]} 21... Nxd5 {[%clk 0:00:10.7]} 22. exd5 {[%clk 0:01:15.8]}
22... Nd8 {[%clk 0:00:09.8]} 23. Nxd8 {[%clk 0:01:15.8]} 23... Qxc5 {[%clk
0:00:06.8]} 24. Nxb7 {[%clk 0:01:08.7]} 24... Qb6 {[%clk 0:00:07]} 25. Nxa5
{[%clk 0:00:57.5]} 25... Qxa5 {[%clk 0:00:03.9]} 26. a3 {[%clk 0:00:58.4]} 1-0

[Event "*** Titled Tuesday Blitz"]
[Site "Chess.com"]
[Date "2020.04.28"]
[Round "2"]
[White "NZT72"]
[Black "tan275"]
[Result "0-1"]
[WhiteElo "2404"]
[BlackElo "2178"]
[TimeControl "180+1"]
[EndTime "10:16:47 PDT"]
[Termination "tan275 won by resignation"]

1. c4 {[%clk 0:03:00.9]} 1... e6 {[%clk 0:02:59.1]} 2. g3 {[%clk 0:03:00.1]}
2... d5 {[%clk 0:02:58.5]} 3. Bg2 {[%clk 0:03:00.4]} 3... Nf6 {[%clk 0:02:58.8]}
4. Nf3 {[%clk 0:03:00.5]} 4... d4 {[%clk 0:02:58.1]} 5. d3 {[%clk 0:02:49.4]}
5... c5 {[%clk 0:02:56]} 6. e4 {[%clk 0:02:49.4]} 6... Nc6 {[%clk 0:02:52.8]} 7.
e5 {[%clk 0:02:49.2]} 7... Nd7 {[%clk 0:02:52]} 8. Qe2 {[%clk 0:02:49]} 8... Qc7
{[%clk 0:02:51.8]} 9. Bf4 {[%clk 0:02:48.2]} 9... h6 {[%clk 0:02:47.8]} 10. h4
{[%clk 0:02:45]} 10... Be7 {[%clk 0:02:45.4]} 11. Nbd2 {[%clk 0:02:33.9]} 11...
b6 {[%clk 0:02:38]} 12. a3 {[%clk 0:02:32.7]} 12... Bb7 {[%clk 0:02:38]} 13. Rb1
{[%clk 0:02:15.8]} 13... a5 {[%clk 0:02:33.5]} 14. O-O {[%clk 0:01:56.6]} 14...
g5 {[%clk 0:02:12.1]} 15. hxg5 {[%clk 0:01:56.1]} 15... hxg5 {[%clk 0:02:12]}
16. Bxg5 {[%clk 0:01:31.7]} 16... Bxg5 {[%clk 0:02:05.5]} 17. Nxg5 {[%clk
0:01:31.8]} 17... Ncxe5 {[%clk 0:02:05.4]} 18. Bxb7 {[%clk 0:00:56.8]} 18...
Qxb7 {[%clk 0:02:03.3]} 19. Nge4 {[%clk 0:00:57.3]} 19... Ke7 {[%clk 0:01:55.6]}
20. b4 {[%clk 0:00:51.4]} 20... f5 {[%clk 0:01:47.8]} 21. f4 {[%clk 0:00:46.9]}
21... Ng4 {[%clk 0:01:28.7]} 22. bxc5 {[%clk 0:00:34.6]} 22... fxe4 {[%clk
0:01:09.8]} 23. Qxg4 {[%clk 0:00:30.5]} 23... Rag8 {[%clk 0:01:10]} 24. c6
{[%clk 0:00:08.8]} 24... Qxc6 {[%clk 0:01:07.2]} 0-1

[Event "*** Titled Tuesday Blitz"]
[Site "Chess.com"]
[Date "2020.04.28"]
[Round "2"]
[White "indfraeng"]
[Black "JulAnt"]
[Result "0-1"]
[WhiteElo "2279"]
[BlackElo "2522"]
[TimeControl "180+1"]
[EndTime "10:16:50 PDT"]
[Termination "JulAnt won by checkmate"]

1. d4 {[%clk 0:03:00.9]} 1... Nf6 {[%clk 0:02:59.8]} 2. c4 {[%clk 0:03:01.4]}
2... g6 {[%clk 0:02:59.7]} 3. g3 {[%clk 0:03:01.8]} 3... Bg7 {[%clk 0:02:59.7]}
4. Bg2 {[%clk 0:03:02]} 4... O-O {[%clk 0:03:00.1]} 5. Nc3 {[%clk 0:03:01.9]}
5... d6 {[%clk 0:03:00.6]} 6. Nf3 {[%clk 0:03:01.6]} 6... Nc6 {[%clk 0:03:01]}
7. O-O {[%clk 0:03:00.9]} 7... Bg4 {[%clk 0:03:01.1]} 8. h3 {[%clk 0:02:59.3]}
8... Bxf3 {[%clk 0:02:59.9]} 9. Bxf3 {[%clk 0:03:00.2]} 9... Nd7 {[%clk
0:03:00.1]} 10. Bxc6 {[%clk 0:02:53]} 10... bxc6 {[%clk 0:02:59.8]} 11. e4
{[%clk 0:02:52.7]} 11... c5 {[%clk 0:02:58.9]} 12. d5 {[%clk 0:02:51.2]} 12...
Nb8 {[%clk 0:02:46.6]} 13. f4 {[%clk 0:02:48.1]} 13... c6 {[%clk 0:02:46.7]} 14.
Qe2 {[%clk 0:02:45.2]} 14... cxd5 {[%clk 0:02:46.7]} 15. exd5 {[%clk 0:02:43.5]}
15... Nd7 {[%clk 0:02:43]} 16. Bd2 {[%clk 0:02:39.7]} 16... Rb8 {[%clk
0:02:41.8]} 17. b3 {[%clk 0:02:38.5]} 17... Re8 {[%clk 0:02:38.6]} 18. Rae1
{[%clk 0:02:37]} 18... e6 {[%clk 0:02:31.5]} 19. dxe6 {[%clk 0:02:31.7]} 19...
Rxe6 {[%clk 0:02:31.3]} 20. Qd3 {[%clk 0:02:29.5]} 20... Bd4+ {[%clk 0:02:25.4]}
21. Be3 {[%clk 0:02:26.9]} 21... Bg7 {[%clk 0:01:46.5]} 22. Bf2 {[%clk 0:02:20]}
22... Rxe1 {[%clk 0:01:39.6]} 23. Rxe1 {[%clk 0:02:19.6]} 23... Nf6 {[%clk
0:01:39.4]} 24. Nd5 {[%clk 0:02:17.9]} 24... Nxd5 {[%clk 0:01:38.6]} 25. Qxd5
{[%clk 0:02:18.8]} 25... Qf6 {[%clk 0:01:32.9]} 26. Rd1 {[%clk 0:02:15.8]} 26...
Qb2 {[%clk 0:01:24]} 27. Qxd6 {[%clk 0:02:09.6]} 27... Re8 {[%clk 0:01:20]} 28.
Qxc5 {[%clk 0:02:04.6]} 28... Qxa2 {[%clk 0:01:16.2]} 29. b4 {[%clk 0:02:00.6]}
29... h5 {[%clk 0:01:13.8]} 30. b5 {[%clk 0:01:57]} 30... Qb3 {[%clk 0:01:11.5]}
31. Rf1 {[%clk 0:01:47.3]} 31... h4 {[%clk 0:01:10]} 32. Kg2 {[%clk 0:01:40.9]}
32... Re4 {[%clk 0:00:58.7]} 33. Qxa7 {[%clk 0:01:36.7]} 33... Rxc4 {[%clk
0:00:52.5]} 34. b6 {[%clk 0:01:35.3]} 34... hxg3 {[%clk 0:00:49.1]} 35. Bxg3
{[%clk 0:01:30.1]} 35... Rc2+ {[%clk 0:00:49.1]} 36. Rf2 {[%clk 0:01:28.1]}
36... Qd5+ {[%clk 0:00:49.1]} 37. Kh2 {[%clk 0:01:25.5]} 37... Rc1 {[%clk
0:00:43.5]} 38. Qb8+ {[%clk 0:01:23.2]} 38... Kh7 {[%clk 0:00:42.8]} 39. Rg2
{[%clk 0:01:22.1]} 39... Qd1 {[%clk 0:00:38.4]} 40. Bf2 {[%clk 0:01:15.4]} 40...
Qh1+ {[%clk 0:00:36.6]} 41. Kg3 {[%clk 0:01:15.7]} 41... Rc3+ {[%clk 0:00:36.5]}
42. Be3 {[%clk 0:01:11.5]} 42... Rxe3+ {[%clk 0:00:35.7]} 43. Kf2 {[%clk
0:01:11.1]} 43... Qe1# {[%clk 0:00:34.9]} 0-1

[Event "*** Titled Tuesday Blitz"]
[Site "Chess.com"]
[Date "2020.04.28"]
[Round "2"]
[White "WinstonSilvakov"]
[Black "Kostya26"]
[Result "0-1"]
[WhiteElo "2106"]
[BlackElo "2402"]
[TimeControl "180+1"]
[EndTime "10:16:53 PDT"]
[Termination "Kostya26 won by resignation"]

1. e4 {[%clk 0:02:59.3]} 1... c5 {[%clk 0:02:58.7]} 2. Nf3 {[%clk 0:02:59.6]}
2... Nc6 {[%clk 0:02:54.6]} 3. d4 {[%clk 0:03:00.5]} 3... cxd4 {[%clk
0:02:54.7]} 4. c3 {[%clk 0:03:00.6]} 4... dxc3 {[%clk 0:02:54.1]} 5. Nxc3 {[%clk
0:03:00.8]} 5... d6 {[%clk 0:02:54.5]} 6. Bc4 {[%clk 0:03:00.2]} 6... e6 {[%clk
0:02:54.4]} 7. Qe2 {[%clk 0:02:59.3]} 7... Be7 {[%clk 0:02:54.5]} 8. O-O {[%clk
0:02:59.7]} 8... Nf6 {[%clk 0:02:54.9]} 9. Rd1 {[%clk 0:02:59.1]} 9... e5 {[%clk
0:02:55.2]} 10. Bg5 {[%clk 0:02:49.7]} 10... O-O {[%clk 0:02:54.5]} 11. Nb5
{[%clk 0:02:48.5]} 11... a6 {[%clk 0:02:51.5]} 12. Bxf6 {[%clk 0:02:41.4]} 12...
axb5 {[%clk 0:02:20.9]} 13. Bxe7 {[%clk 0:02:37.3]} 13... Qxe7 {[%clk
0:02:21.8]} 14. Bxb5 {[%clk 0:02:37.4]} 14... Bg4 {[%clk 0:02:22.3]} 15. Bxc6
{[%clk 0:02:33.9]} 15... bxc6 {[%clk 0:02:23.2]} 16. Qe3 {[%clk 0:02:31]} 16...
f5 {[%clk 0:02:15.9]} 17. h3 {[%clk 0:02:23.6]} 17... fxe4 {[%clk 0:01:45.9]}
18. hxg4 {[%clk 0:02:16.7]} 18... exf3 {[%clk 0:01:45.1]} 19. gxf3 {[%clk
0:02:16.6]} 19... Rf4 {[%clk 0:01:30.1]} 20. Rac1 {[%clk 0:02:04.6]} 20... Raf8
{[%clk 0:01:07.1]} 21. Qb3+ {[%clk 0:01:56]} 21... Kh8 {[%clk 0:01:04.8]} 22.
Rc3 {[%clk 0:01:39.9]} 22... e4 {[%clk 0:00:41.1]} 23. Re1 {[%clk 0:01:17.3]}
23... Qh4 {[%clk 0:00:33.8]} 24. Rxc6 {[%clk 0:01:12.8]} 24... exf3 {[%clk
0:00:19.7]} 25. Qg8+ {[%clk 0:00:44.3]} 25... Kxg8 {[%clk 0:00:17]} 0-1